[Event "Galatasaray Blitz Chess Tournament"]
[Site "Istanbul"]
[Date "2019.03.24"]
[Round "4.3"]
[White "Ozturk, Kubra"]
[Black "Arat, Ufuk Sezen"]
[Result "1/2-1/2"]
[ECO "E73"]
[WhiteElo "2344"]
[BlackElo "2368"]
[Annotator "ChessBase"]
[PlyCount "101"]
[EventDate "2019.03.24"]
[EventType "swiss"]
[EventCountry "TUR"]
[SourceTitle "playchess.com"]
[Source "ChessBase"]
[SourceQuality "1"]
[TimeControl "300+3"]

1. d4 Nf6 2. c4 g6 3. Nc3 Bg7 4. e4 d6 5. Be2 O-O 6. Be3 Na6 7. g4 c5 8. d5 Nc7 9. g5 Nd7 10. h4 a6 11. a4 e6 12. dxe6 Nxe6 13. Qxd6 Qa5 14. Bd2 Qb4 15. Nd1 Qb6 16. Qxb6 Nxb6 17. a5 Nd7 18. h5 Nd4 19. Bd3 Ne5 20. Ra3 Be6 21. Ne3 Rad8 22. Nd5 Bxd5 23. exd5 f6 24. hxg6 hxg6 25. f4 Nxd3+ 26. Rxd3 fxg5 27. fxg5 Rde8+ 28. Be3 Nc2+ 29. Kd2 Nxe3 30. Rxe3 Rxe3 31. Kxe3 Bd4+ 32. Ke4 Rf1 33. d6 Re1+ 34. Kf3 Bxg1 35. d7 Re3+ 36. Kf4 Rd3 37. Rxg1 Rxd7 38. Ke5 Rd4 39. Kf6 Rxc4 40. Kxg6 Rd4 41. Re1 Rd6+ 42. Kf5 b6 43. g6 bxa5 44. Re8+ Kg7 45. Re7+ Kf8 46. Rc7 Rb6 47. Rc8+ Kg7 48. Rc7+ Kg8 49. Rxc5 Rxb2 50. Rxa5 Rb6 51. Ke4 1/2-1/2

[Event "Galatasaray Blitz Chess Tournament"]
[Site "Istanbul"]
[Date "2019.03.24"]
[Round "4.5"]
[White "Tuncer, Tuna"]
[Black "Yurtseven, Melih"]
[Result "0-1"]
[ECO "C45"]
[WhiteElo "2371"]
[BlackElo "2390"]
[Annotator "ChessBase"]
[PlyCount "118"]
[EventDate "2019.03.24"]
[EventType "swiss"]
[EventCountry "TUR"]
[SourceTitle "playchess.com"]
[Source "ChessBase"]
[SourceQuality "1"]
[TimeControl "300+3"]

1. e4 e5 2. Nf3 Nc6 3. d4 exd4 4. Nxd4 Nxd4 5. Qxd4 Qf6 6. Be3 Qxd4 7. Bxd4 Nf6 8. Nc3 Bb4 9. O-O-O Bxc3 10. Bxc3 d6 11. Bd3 Be6 12. h3 O-O-O 13. b3 Nd7 14. f4 f6 15. Be2 Rde8 16. Bf3 Bf7 17. Rhe1 Re7 18. Bg4 Be6 19. Bf3 Bf7 20. g4 Rhe8 21. Bb4 Bg6 22. e5 fxe5 23. f5 Bf7 24. g5 Rf8 25. Bg4 Ree8 26. Bc3 Bg8 27. h4 Rd8 28. Rf1 Kb8 29. Rf2 Nc5 30. Re1 Bd5 31. Rd2 Bc6 32. Bb4 Ne4 33. Rde2 Ng3 34. Rf2 Ne4 35. Rff1 Ng3 36. Rf2 Bd7 37. Rg1 Nxf5 38. Rgf1 g6 39. h5 c5 40. Bd2 Kc7 41. Kb2 d5 42. hxg6 hxg6 43. Rh1 Rh8 44. Rfh2 Rxh2 45. Rxh2 Re8 46. Rh7 Re7 47. Rh8 e4 48. Bf4+ Kb6 49. Rg8 Be8 50. Bxf5 gxf5 51. Kc1 d4 52. g6 e3 53. Kd1 Re6 54. g7 Bh5+ 55. Kc1 e2 56. Bg3 e1=Q+ 57. Bxe1 Rxe1+ 58. Kd2 Rg1 59. Rh8 Bf7 0-1

[Event "Galatasaray Blitz Chess Tournament"]
[Site "Istanbul"]
[Date "2019.03.24"]
[Round "7.2"]
[White "Arat, Ufuk Sezen"]
[Black "Yurtseven, Melih"]
[Result "0-1"]
[ECO "D77"]
[WhiteElo "2368"]
[BlackElo "2390"]
[Annotator "NA"]
[PlyCount "94"]
[EventDate "2019.03.24"]
[EventType "swiss"]
[EventCountry "TUR"]
[SourceTitle "playchess.com"]
[Source "ChessBase"]
[SourceQuality "1"]
[TimeControl "300+3"]

1. d4 Nf6 2. c4 g6 3. Nf3 Bg7 4. g3 O-O 5. Bg2 e6 6. O-O d5 7. Nc3 b6 8. cxd5 Nxd5 9. Nxd5 exd5 10. Bg5 Qe8 11. Rc1 c6 12. Qd2 Bb7 13. Rc2 Nd7 14. Bh6 Qe6 15. Rfc1 Rfe8 16. Bxg7 Kxg7 17. e3 Rad8 18. h4 c5 19. Ng5 Qf6 20. b3 h6 21. Nh3 g5 22. hxg5 hxg5 23. dxc5 Nxc5 24. Qc3 Ne6 25. Qxf6+ Kxf6 26. f4 gxf4 27. exf4 Nd4 28. Rc7 Ne2+ 29. Kf2 Nxc1 30. Rxc1 Rd7 31. Ng5 Rde7 32. Bf1 d4 33. Rd1 Rd8 34. Bd3 Bc6 35. Nh3 Rh8 36. Bf1 Bd7 37. Ng5 Rh2+ 38. Kg1 Rxa2 39. Rxd4 Ra1 40. Ne4+ Kg7 41. Nf2 Bb5 42. Nd3 Bxd3 43. Rxd3 Ree1 44. Rf3 a5 45. Kg2 Ra2+ 46. Kh3 Ra3 47. Bc4 Rc1 0-1

[Event "Galatasaray Blitz Chess Tournament"]
[Site "Istanbul"]
[Date "2019.03.24"]
[Round "7.3"]
[White "Ozer, Omer Faruk"]
[Black "Tuncer, Tuna"]
[Result "1-0"]
[ECO "B48"]
[WhiteElo "2369"]
[BlackElo "2371"]
[Annotator "NA"]
[PlyCount "61"]
[EventDate "2019.03.24"]
[EventType "swiss"]
[EventCountry "TUR"]
[SourceTitle "playchess.com"]
[Source "ChessBase"]
[SourceQuality "1"]
[TimeControl "300+3"]

1. e4 c5 2. Nf3 e6 3. d4 cxd4 4. Nxd4 Nc6 5. Nc3 Qc7 6. Be3 a6 7. Qf3 Bd6 8. O-O-O Be5 9. g3 Nge7 10. Qe2 b5 11. f4 Bxd4 12. Bxd4 Nxd4 13. Rxd4 Rb8 14. Bg2 b4 15. Nd1 O-O 16. Kb1 a5 17. Ne3 Qa7 18. Qd2 Nc6 19. Rd6 a4 20. e5 b3 21. cxb3 axb3 22. a3 Na5 23. Rc1 Nb7 24. Rc7 Qa4 25. Rb6 d5 26. exd6 Rd8 27. Bxb7 Bxb7 28. Ka1 Qe4 29. Rb4 Qh1+ 30. Rc1 Rxd6 31. Rxb7 1-0

[Event "Galatasaray Blitz Chess Tournament"]
[Site "Istanbul"]
[Date "2019.03.24"]
[Round "8.4"]
[White "Yurtseven, Melih"]
[Black "Ozer, Omer Faruk"]
[Result "1/2-1/2"]
[ECO "B06"]
[WhiteElo "2390"]
[BlackElo "2369"]
[Annotator "ChessBase"]
[PlyCount "135"]
[EventDate "2019.03.24"]
[EventType "swiss"]
[EventCountry "TUR"]
[SourceTitle "playchess.com"]
[Source "ChessBase"]
[SourceQuality "1"]
[TimeControl "300+3"]

1. Nf3 d6 {[%emt 0:00:00]} 2. e4 {[%emt 0:00:02]} g6 {[%emt 0:00:34]} 3. d4 {[%emt 0:00:01]} Bg7 {[%emt 0:00:00]} 4. Bc4 {[%emt 0:00:02]} a6 {[%emt 0:00:09]} 5. h3 {[%emt 0:00:23]} e6 {[%emt 0:00:03]} 6. Bd3 {[%emt 0:00:02]} Nd7 {[%emt 0:00:12]} 7. Bg5 {[%emt 0:00:06]} Ne7 {[%emt 0:00:03]} 8. Qd2 {[%emt 0:00:03]} h6 {[%emt 0:00:03]} 9. Be3 {[%emt 0:00:03]} c5 {[%emt 0:00:20]} 10. c3 {[%emt 0:00:01]} b5 {[%emt 0:00:15]} 11. a4 {[%emt 0:00:04]} c4 {[%emt 0:00:00]} 12. Bc2 {[%emt 0:00:05]} Bb7 {[%emt 0:00:01]} 13. Na3 {[%emt 0:00:02]} Nf6 {[%emt 0:00:06]} 14. axb5 {[%emt 0:00:24]} axb5 {[%emt 0:00:06]} 15. Qc1 {[%emt 0:00:12]} Nxe4 {[%emt 0:00:28]} 16. Nxb5 {[%emt 0:00:05]} Rxa1 {[%emt 0:00:02]} 17. Qxa1 {[%emt 0:00:01]} O-O {[%emt 0:00:09]} 18. Qa7 {[%emt 0:00:10]} Bc6 {[%emt 0:00:29]} 19. Na3 {[%emt 0:00:10]} Nf5 {[%emt 0:00:06]} 20. Nxc4 {[%emt 0:00:33]} Nf6 {[%emt 0:00:35]} 21. Ncd2 {[%emt 0:01:37]} Nd5 {[%emt 0:00:03]} 22. Nf1 {[%emt 0:00:20]} Bb5 {[%emt 0:00:14]} 23. Bxf5 {[%emt 0:00:31]} exf5 {[%emt 0:00:03]} 24. Qa2 {[%emt 0:00:02]} Qa8 {[%emt 0:00:11]} 25. Qxa8 {[%emt 0:00:50]} Rxa8 {[%emt 0:00:02]} 26. Bc1 {[%emt 0:00:02]} Ra1 {[%emt 0:00:20]} 27. Kd2 {[%emt 0:00:00]} Nf6 {[%emt 0:00:02]} 28. Kc2 {[%emt 0:00:17]} Ne4 {[%emt 0:00:07]} 29. Ng3 {[%emt 0:00:04]} Nxf2 {[%emt 0:00:04]} 30. Rg1 {[%emt 0:00:05]} h5 {[%emt 0:00:27]} 31. h4 {[%emt 0:00:03]} Bd3+ {[%emt 0:00:06]} 32. Kb3 {[%emt 0:00:04]} Ne4 {[%emt 0:00:24]} 33. Bf4 {[%emt 0:00:08]} Ra8 {[%emt 0:00:02]} 34. Nxe4 {[%emt 0:00:03]} fxe4 {[%emt 0:00:04]} 35. Nd2 {[%emt 0:00:03]} d5 {[%emt 0:00:00]} 36. Bd6 {[%emt 0:00:01]} Bh6 {[%emt 0:00:02]} 37. Nf1 {[%emt 0:00:04]} e3 {[%emt 0:00:08]} 38. Ng3 {[%emt 0:00:02]} Re8 {[%emt 0:00:07]} 39. Re1 {[%emt 0:00:03]} f6 {[%emt 0:00:04]} 40. Ne2 {[%emt 0:00:05]} Kf7 {[%emt 0:00:08]} 41. Bf4 {[%emt 0:00:02]} Bf8 {[%emt 0:00:16]} 42. Nc1 {[%emt 0:00:03]} Bc4+ {[%emt 0:00:03]} 43. Kc2 {[%emt 0:00:02]} e2 {[%emt 0:00:11]} 44. Kd2 {[%emt 0:00:03]} Re4 {[%emt 0:00:03]} 45. g3 {[%emt 0:00:01]} Rxd4+ {[%emt 0:00:09]} 46. cxd4 {[%emt 0:00:03]} Bb4+ {[%emt 0:00:01]} 47. Ke3 {[%emt 0:00:01]} Bxe1 {[%emt 0:00:01]} 48. Nxe2 {[%emt 0:00:03]} Ke6 {[%emt 0:00:03]} 49. Nc3 {[%emt 0:00:01]} Kf5 {[%emt 0:00:03]} 50. Kf3 {[%emt 0:00:02]} g5 {[%emt 0:00:00]} 51. hxg5 {[%emt 0:00:01]} fxg5 {[%emt 0:00:00]} 52. Be5 {[%emt 0:00:03]} Bd2 {[%emt 0:00:07]} 53. Kf2 {[%emt 0:00:02]} Bc1 {[%emt 0:00:00]} 54. b4 {[%emt 0:00:14]} Bd2 {[%emt 0:00:01]} 55. Nd1 {[%emt 0:00:04]} Ke4 {[%emt 0:00:04]} 56. Bd6 {[%emt 0:00:02]} Kxd4 {[%emt 0:00:06]} 57. Bc5+ {[%emt 0:00:01]} Ke4 {[%emt 0:00:01]} 58. Ne3 {[%emt 0:00:02]} Bb5 {[%emt 0:00:03]} 59. Nc2 {[%emt 0:00:05]} Bc3 {[%emt 0:00:01]} 60. Na3 {[%emt 0:00:05]} Bc6 {[%emt 0:00:13]} 61. b5 {[%emt 0:00:00]} Bb7 {[%emt 0:00:00]} 62. b6 {[%emt 0:00:02]} h4 {[%emt 0:00:02]} 63. gxh4 {[%emt 0:00:01]} gxh4 {[%emt 0:00:03]} 64. Nb5 {[%emt 0:00:03]} Be5 {[%emt 0:00:03]} 65. Nd6+ {[%emt 0:00:03]} Bxd6 {[%emt 0:00:03]} 66. Bxd6 {[%emt 0:00:03]} d4 {[%emt 0:00:03]} 67. Ke1 {[%emt 0:00:03]} Kf3 {[%emt 0:00:05]} 68. Kd2 {[%emt 0:00:00]} 1/2-1/2

[Event "Galatasaray Blitz Chess Tournament"]
[Site "Istanbul"]
[Date "2019.03.24"]
[Round "9.4"]
[White "Aghamaliyev, Cemil"]
[Black "Tuncer, Tuna"]
[Result "1-0"]
[ECO "B47"]
[WhiteElo "2493"]
[BlackElo "2371"]
[Annotator "RC"]
[PlyCount "39"]
[EventDate "2019.03.24"]
[EventType "swiss"]
[EventCountry "TUR"]
[SourceTitle "playchess.com"]
[Source "ChessBase"]
[SourceQuality "1"]
[TimeControl "300+3"]

1. e4 {[%emt 0:00:00]} c5 {[%emt 0:00:00]} 2. Nf3 {[%emt 0:00:03]} e6 {[%emt 0:00:03]} 3. d4 {[%emt 0:00:00]} cxd4 {[%emt 0:00:00]} 4. Nxd4 {[%emt 0:00:01]} Nc6 {[%emt 0:00:00]} 5. Nc3 {[%emt 0:00:01]} Qc7 {[%emt 0:00:00]} 6. f4 {[%emt 0:00:01]} a6 {[%emt 0:00:05]} 7. Nf3 {[%emt 0:00:02]} b5 {[%emt 0:00:22]} 8. Bd3 {[%emt 0:00:01]} Bb7 {[%emt 0:00:21]} 9. O-O {[%emt 0:00:03]} Bc5+ {[%emt 0:00:00]} 10. Kh1 {[%emt 0:00:01]} Nge7 {[%emt 0:00:08]} 11. a3 {[%emt 0:00:34]} O-O {[%emt 0:00:05]} 12. e5 {[%emt 0:00:24]} f5 {[%emt 0:01:13]} 13. exf6 {[%emt 0:00:17]} gxf6 {[%emt 0:00:03]} 14. Ne4 {[%emt 0:00:31]} Ba7 {[%emt 0:00:03]} 15. Nd6 {[%emt 0:00:20]} Kh8 {[%emt 0:00:42]} 16. Nxb7 {[%emt 0:00:02]} Qxb7 {[%emt 0:00:01]} 17. b4 {[%emt 0:00:11]} Nd5 {[%emt 0:01:10]} 18. Qe1 {[%emt 0:00:01]} Nd4 {[%emt 0:00:23]} 19. Nxd4 {[%emt 0:00:03]} Bxd4 {[%emt 0:00:05]} 20. Qe4 {[%emt 0:00:01]} 1-0

[Event "Galatasaray Blitz Chess Tournament"]
[Site "Istanbul"]
[Date "2019.03.24"]
[Round "9.5"]
[White "Ozturk, Kubra"]
[Black "Gulbas, Cemil"]
[Result "0-1"]
[ECO "D10"]
[WhiteElo "2344"]
[BlackElo "2404"]
[Annotator "NA"]
[PlyCount "106"]
[EventDate "2019.03.24"]
[EventType "swiss"]
[EventCountry "TUR"]
[SourceTitle "playchess.com"]
[Source "ChessBase"]
[SourceQuality "1"]
[TimeControl "300+3"]

1. d4 {[%emt 0:00:00]} d5 {[%emt 0:00:00]} 2. c4 {[%emt 0:00:03]} c6 {[%emt 0:00:00]} 3. cxd5 {[%emt 0:00:00]} cxd5 {[%emt 0:00:00]} 4. Bg5 {[%emt 0:00:03]} Nc6 {[%emt 0:00:03]} 5. Nc3 {[%emt 0:00:01]} f6 {[%emt 0:00:05]} 6. Bd2 {[%emt 0:00:13]} e5 {[%emt 0:01:09]} 7. e3 {[%emt 0:00:06]} Bb4 {[%emt 0:00:27]} 8. a3 {[%emt 0:00:20]} Bxc3 {[%emt 0:00:13]} 9. Bxc3 {[%emt 0:00:01]} Nge7 {[%emt 0:00:03]} 10. Qh5+ {[%emt 0:00:13]} g6 {[%emt 0:00:16]} 11. Qf3 {[%emt 0:00:12]} exd4 {[%emt 0:00:34]} 12. exd4 {[%emt 0:00:09]} O-O {[%emt 0:00:16]} 13. h4 {[%emt 0:00:05]} h5 {[%emt 0:00:03]} 14. Bd3 {[%emt 0:00:06]} Bg4 {[%emt 0:00:35]} 15. Qf4 {[%emt 0:00:10]} Bf5 {[%emt 0:00:11]} 16. O-O-O {[%emt 0:00:08]} Rc8 {[%emt 0:00:09]} 17. Bxf5 {[%emt 0:00:14]} Nxf5 {[%emt 0:00:05]} 18. g4 {[%emt 0:00:06]} Qd6 {[%emt 0:00:30]} 19. Ne2 {[%emt 0:00:48]} Qxf4+ {[%emt 0:00:23]} 20. Nxf4 {[%emt 0:00:02]} hxg4 {[%emt 0:00:01]} 21. Nxd5 {[%emt 0:00:28]} Kf7 {[%emt 0:00:10]} 22. h5 {[%emt 0:00:33]} g5 {[%emt 0:00:21]} 23. h6 {[%emt 0:00:16]} Kg6 {[%emt 0:00:10]} 24. h7 {[%emt 0:00:14]} Rh8 {[%emt 0:00:04]} 25. Rde1 {[%emt 0:00:13]} Rcd8 {[%emt 0:00:08]} 26. Ne3 {[%emt 0:00:25]} Nxe3 {[%emt 0:00:11]} 27. fxe3 {[%emt 0:00:11]} Rxh7 {[%emt 0:00:07]} 28. Rhg1 {[%emt 0:00:02]} Rh4 {[%emt 0:00:02]} 29. Re2 {[%emt 0:00:06]} f5 {[%emt 0:00:04]} 30. b4 {[%emt 0:00:12]} Ne7 {[%emt 0:00:01]} 31. e4 {[%emt 0:00:06]} f4 {[%emt 0:00:01]} 32. d5 {[%emt 0:00:06]} g3 {[%emt 0:00:05]} 33. Bd4 {[%emt 0:00:08]} f3 {[%emt 0:00:05]} 34. Rc2 {[%emt 0:00:16]} Rxe4 {[%emt 0:00:02]} 35. Bxa7 {[%emt 0:00:01]} f2 {[%emt 0:00:04]} 36. Bxf2 {[%emt 0:00:03]} gxf2 {[%emt 0:00:00]} 37. Rxf2 {[%emt 0:00:01]} Rxd5 {[%emt 0:00:01]} 38. Rc2 {[%emt 0:00:06]} b5 {[%emt 0:00:05]} 39. Rcg2 {[%emt 0:00:22]} Re3 {[%emt 0:00:04]} 40. Kb2 {[%emt 0:00:03]} Ree5 {[%emt 0:00:02]} 41. Kc2 {[%emt 0:00:01]} Nc6 {[%emt 0:00:01]} 42. Rf2 {[%emt 0:00:03]} Nd4+ {[%emt 0:00:04]} 43. Kb1 {[%emt 0:00:02]} Ne2 {[%emt 0:00:00]} 44. Rgf1 {[%emt 0:00:06]} Nc3+ {[%emt 0:00:01]} 45. Kc2 {[%emt 0:00:02]} Ne4 {[%emt 0:00:02]} 46. Rf8 {[%emt 0:00:01]} Rd7 {[%emt 0:00:08]} 47. Re1 {[%emt 0:00:05]} Re6 {[%emt 0:00:07]} 48. Kb2 {[%emt 0:00:03]} Nc5 {[%emt 0:00:04]} 49. Rh1 {[%emt 0:00:06]} Na4+ {[%emt 0:00:01]} 50. Kb1 {[%emt 0:00:03]} Red6 {[%emt 0:00:05]} 51. Rg8+ {[%emt 0:00:00]} Rg7 {[%emt 0:00:00]} 52. Rb8 {[%emt 0:00:03]} g4 {[%emt 0:00:02]} 53. Rxb5 {[%emt 0:00:03]} Nc3+ {[%emt 0:00:01]} 0-1

[Event "Galatasaray Blitz Chess Tournament"]
[Site "Istanbul"]
[Date "2019.03.24"]
[Round "10.2"]
[White "Ozturk, Kubra"]
[Black "Tuncer, Tuna"]
[Result "0-1"]
[ECO "A94"]
[WhiteElo "2344"]
[BlackElo "2371"]
[Annotator "NA"]
[PlyCount "60"]
[EventDate "2019.03.24"]
[EventType "swiss"]
[EventCountry "TUR"]
[SourceTitle "playchess.com"]
[Source "ChessBase"]
[SourceQuality "1"]
[TimeControl "180+2"]

1. d4 {[%emt 0:00:00]} f5 {[%emt 0:00:00]} 2. Nf3 {[%emt 0:00:02]} Nf6 {[%emt 0:00:02]} 3. g3 {[%emt 0:00:02]} e6 {[%emt 0:00:02]} 4. Bg2 {[%emt 0:00:02]} d5 {[%emt 0:00:02]} 5. O-O {[%emt 0:00:02]} Bd6 {[%emt 0:00:02]} 6. c4 {[%emt 0:00:02]} O-O {[%emt 0:00:02]} 7. b3 {[%emt 0:00:02]} c6 {[%emt 0:00:02]} 8. Ba3 {[%emt 0:00:02]} Bxa3 {[%emt 0:00:02]} 9. Nxa3 {[%emt 0:00:02]} Qe7 {[%emt 0:00:02]} 10. Nb1 {[%emt 0:00:02]} Nbd7 {[%emt 0:00:02]} 11. Nbd2 {[%emt 0:00:02]} b6 {[%emt 0:00:02]} 12. Qc2 {[%emt 0:00:02]} Bb7 {[%emt 0:00:29]} 13. e3 {[%emt 0:00:31]} Ne4 {[%emt 0:00:13]} 14. Ne1 {[%emt 0:00:40]} c5 {[%emt 0:00:10]} 15. Nd3 {[%emt 0:00:24]} Rac8 {[%emt 0:00:05]} 16. dxc5 {[%emt 0:00:22]} Ndxc5 {[%emt 0:00:20]} 17. Nxc5 {[%emt 0:00:22]} Rxc5 {[%emt 0:00:09]} 18. Rac1 {[%emt 0:00:10]} Nxd2 {[%emt 0:00:33]} 19. Qxd2 {[%emt 0:00:01]} dxc4 {[%emt 0:00:00]} 20. Rxc4 {[%emt 0:00:10]} Rxc4 {[%emt 0:00:07]} 21. bxc4 {[%emt 0:00:01]} Bxg2 {[%emt 0:00:03]} 22. Kxg2 Rc8 {[%emt 0:00:07]} 23. Rd1 {[%emt 0:00:09]} Rc7 {[%emt 0:00:18]} 24. Qd4 {[%emt 0:00:07]} h6 {[%emt 0:00:15]} 25. h4 {[%emt 0:00:01]} Kh7 {[%emt 0:00:04]} 26. h5 {[%emt 0:00:15]} Qe8 {[%emt 0:00:01]} 27. Qf4 {[%emt 0:00:05]} Qc6+ {[%emt 0:00:10]} 28. Kh2 {[%emt 0:00:07]} Qxc4 {[%emt 0:00:03]} 29. Qxc4 {[%emt 0:00:07]} Rxc4 {[%emt 0:00:01]} 30. Rd7 {[%emt 0:00:02]} Ra4 {[%emt 0:00:10]} 0-1

[Event "Galatasaray Blitz Chess Tournament"]
[Site "Istanbul"]
[Date "2019.03.24"]
[Round "10.5"]
[White "Ozer, Omer Faruk"]
[Black "Arat, Ufuk Sezen"]
[Result "1-0"]
[ECO "B11"]
[WhiteElo "2369"]
[BlackElo "2368"]
[Annotator "NA"]
[PlyCount "85"]
[EventDate "2019.03.24"]
[EventType "swiss"]
[EventCountry "TUR"]
[SourceTitle "playchess.com"]
[Source "ChessBase"]
[SourceQuality "1"]
[TimeControl "180+2"]

1. e4 {[%emt 0:00:00]} c6 {[%emt 0:00:00]} 2. Nc3 {[%emt 0:00:02]} d5 {[%emt 0:00:02]} 3. Nf3 {[%emt 0:00:02]} Nf6 {[%emt 0:00:02]} 4. e5 {[%emt 0:00:02]} Ne4 {[%emt 0:00:02]} 5. Ne2 {[%emt 0:00:02]} Qb6 {[%emt 0:00:02]} 6. d4 {[%emt 0:00:02]} e6 {[%emt 0:00:02]} 7. Ng3 {[%emt 0:00:02]} c5 {[%emt 0:00:02]} 8. Bd3 {[%emt 0:00:02]} Nxg3 {[%emt 0:00:02]} 9. hxg3 {[%emt 0:00:02]} Nc6 {[%emt 0:00:02]} 10. c3 {[%emt 0:00:02]} cxd4 {[%emt 0:00:02]} 11. cxd4 {[%emt 0:00:02]} Bd7 {[%emt 0:00:35]} 12. Bb1 {[%emt 0:00:54]} Bb4+ {[%emt 0:00:35]} 13. Kf1 {[%emt 0:00:02]} h6 {[%emt 0:00:33]} 14. Kg1 {[%emt 0:00:09]} O-O-O {[%emt 0:00:08]} 15. a3 {[%emt 0:00:06]} Be7 {[%emt 0:00:02]} 16. b4 {[%emt 0:00:01]} g5 {[%emt 0:00:00]} 17. Be3 {[%emt 0:00:07]} g4 {[%emt 0:00:04]} 18. Ne1 {[%emt 0:00:02]} h5 {[%emt 0:00:00]} 19. Nd3 {[%emt 0:00:03]} f6 {[%emt 0:00:27]} 20. exf6 {[%emt 0:00:23]} Bxf6 {[%emt 0:00:01]} 21. Nc5 {[%emt 0:00:00]} Kb8 {[%emt 0:00:21]} 22. Ba2 {[%emt 0:00:09]} Ka8 {[%emt 0:00:02]} 23. Rc1 {[%emt 0:00:18]} Ne7 {[%emt 0:00:03]} 24. Qd2 {[%emt 0:00:11]} Nf5 {[%emt 0:00:04]} 25. Nxd7 {[%emt 0:00:11]} Rxd7 {[%emt 0:00:02]} 26. Rxh5 {[%emt 0:00:01]} Rf8 {[%emt 0:00:14]} 27. Rc5 {[%emt 0:00:12]} a6 {[%emt 0:00:15]} 28. Bb1 {[%emt 0:00:01]} Nd6 {[%emt 0:00:06]} 29. Bd3 {[%emt 0:00:04]} Qd8 {[%emt 0:00:03]} 30. Qc2 {[%emt 0:00:02]} Be7 {[%emt 0:00:04]} 31. b5 {[%emt 0:00:04]} Nxb5 {[%emt 0:00:02]} 32. Bxb5 {[%emt 0:00:05]} axb5 {[%emt 0:00:02]} 33. Rxb5 {[%emt 0:00:01]} Rd6 {[%emt 0:00:01]} 34. Qb3 {[%emt 0:00:01]} Qd7 {[%emt 0:00:01]} 35. Rh7 {[%emt 0:00:05]} Rc6 {[%emt 0:00:06]} 36. a4 {[%emt 0:00:01]} Rfc8 {[%emt 0:00:00]} 37. a5 {[%emt 0:00:03]} Qc7 {[%emt 0:00:02]} 38. Qb2 {[%emt 0:00:07]} Qd7 {[%emt 0:00:01]} 39. Bg5 {[%emt 0:00:03]} Re8 {[%emt 0:00:02]} 40. Rb6 {[%emt 0:00:02]} Rxb6 {[%emt 0:00:02]} 41. Qxb6 {[%emt 0:00:02]} Qd6 {[%emt 0:00:02]} 42. Rxe7 {[%emt 0:00:02]} Qxb6 {[%emt 0:00:02]} 43. Rxe8+ {[%emt 0:00:02]} 1-0

[Event "Galatasaray Blitz Chess Tournament"]
[Site "Istanbul"]
[Date "2019.03.24"]
[Round "11.4"]
[White "Yurtseven, Melih"]
[Black "Ozturk, Kubra"]
[Result "1-0"]
[ECO "A09"]
[WhiteElo "2390"]
[BlackElo "2344"]
[Annotator "NA"]
[PlyCount "73"]
[EventDate "2019.03.24"]
[EventType "swiss"]
[EventCountry "TUR"]
[SourceTitle "playchess.com"]
[Source "ChessBase"]
[SourceQuality "1"]
[TimeControl "180+2"]

1. Nf3 {[%emt 0:00:00]} d5 {[%emt 0:00:00]} 2. c4 {[%emt 0:00:03]} d4 {[%emt 0:00:00]} 3. b4 {[%emt 0:00:04]} c5 {[%emt 0:00:26]} 4. a3 {[%emt 0:00:21]} e6 {[%emt 0:00:39]} 5. g3 {[%emt 0:00:19]} cxb4 {[%emt 0:00:05]} 6. axb4 {[%emt 0:00:01]} Bxb4 {[%emt 0:00:49]} 7. Qa4+ {[%emt 0:00:04]} Nc6 {[%emt 0:00:01]} 8. Ne5 {[%emt 0:00:00]} a5 {[%emt 0:00:12]} 9. Bg2 {[%emt 0:00:18]} Bd7 {[%emt 0:00:04]} 10. Nxd7 {[%emt 0:00:02]} Qxd7 {[%emt 0:00:06]} 11. O-O {[%emt 0:00:05]} Nge7 {[%emt 0:00:06]} 12. d3 {[%emt 0:00:03]} O-O {[%emt 0:00:05]} 13. Na3 {[%emt 0:00:01]} Rab8 {[%emt 0:00:21]} 14. Nc2 {[%emt 0:00:09]} Bc3 {[%emt 0:00:03]} 15. Rb1 {[%emt 0:00:05]} Ne5 {[%emt 0:00:14]} 16. Qa2 {[%emt 0:00:27]} b5 {[%emt 0:00:03]} 17. Bf4 {[%emt 0:00:10]} N7g6 {[%emt 0:00:00]} 18. cxb5 {[%emt 0:00:12]} Rxb5 {[%emt 0:00:00]} 19. Rxb5 {[%emt 0:00:08]} Qxb5 {[%emt 0:00:02]} 20. Rb1 {[%emt 0:00:02]} Qc5 {[%emt 0:00:02]} 21. Bc1 {[%emt 0:00:02]} Qc7 {[%emt 0:00:02]} 22. Qb3 {[%emt 0:00:10]} h6 {[%emt 0:00:02]} 23. Ba3 {[%emt 0:00:00]} Rc8 {[%emt 0:00:04]} 24. Qb5 {[%emt 0:00:05]} Qd7 {[%emt 0:00:05]} 25. Qb6 {[%emt 0:00:18]} Qc7 {[%emt 0:00:07]} 26. Qb3 {[%emt 0:00:03]} Nd7 {[%emt 0:00:11]} 27. h4 {[%emt 0:00:07]} Rb8 {[%emt 0:00:04]} 28. Qa2 {[%emt 0:00:02]} Rxb1+ {[%emt 0:00:02]} 29. Qxb1 {[%emt 0:00:02]} Qb6 {[%emt 0:00:02]} 30. Qxb6 {[%emt 0:00:02]} Nxb6 {[%emt 0:00:02]} 31. Bc5 {[%emt 0:00:02]} Nd7 {[%emt 0:00:02]} 32. Bxd4 {[%emt 0:00:02]} Bxd4 {[%emt 0:00:02]} 33. Nxd4 {[%emt 0:00:02]} a4 {[%emt 0:00:02]} 34. Bc6 {[%emt 0:00:02]} Nc5 {[%emt 0:00:02]} 35. Nc2 {[%emt 0:00:02]} Ne5 {[%emt 0:00:02]} 36. Bb5 {[%emt 0:00:02]} Ned7 {[%emt 0:00:02]} 37. d4 {[%emt 0:00:02]} 1-0

[Event "Galatasaray Blitz Chess Tournament"]
[Site "Istanbul"]
[Date "2019.03.24"]
[Round "11.5"]
[White "Tuncer, Tuna"]
[Black "Gulbas, Cemil"]
[Result "0-1"]
[ECO "B85"]
[WhiteElo "2371"]
[BlackElo "2404"]
[Annotator "NA"]
[PlyCount "50"]
[EventDate "2019.03.24"]
[EventType "swiss"]
[EventCountry "TUR"]
[SourceTitle "playchess.com"]
[Source "ChessBase"]
[SourceQuality "1"]
[TimeControl "180+2"]

1. e4 {[%emt 0:00:00]} c5 {[%emt 0:00:01]} 2. Nf3 {[%emt 0:00:01]} e6 {[%emt 0:00:00]} 3. Nc3 {[%emt 0:00:08]} a6 {[%emt 0:00:06]} 4. d4 {[%emt 0:00:03]} cxd4 {[%emt 0:00:03]} 5. Nxd4 {[%emt 0:00:02]} d6 {[%emt 0:00:03]} 6. Be2 {[%emt 0:00:07]} Nf6 {[%emt 0:00:11]} 7. O-O {[%emt 0:00:04]} Be7 {[%emt 0:00:02]} 8. Be3 {[%emt 0:00:05]} O-O {[%emt 0:00:09]} 9. f4 {[%emt 0:00:03]} Nc6 {[%emt 0:00:06]} 10. Kh1 {[%emt 0:00:24]} Bd7 {[%emt 0:00:01]} 11. Qe1 {[%emt 0:00:03]} Rc8 {[%emt 0:00:15]} 12. Qg3 {[%emt 0:00:04]} b5 {[%emt 0:00:11]} 13. a3 {[%emt 0:00:16]} Na5 {[%emt 0:00:16]} 14. e5 {[%emt 0:00:19]} Ne8 {[%emt 0:00:02]} 15. Rad1 {[%emt 0:00:29]} Nc4 {[%emt 0:00:07]} 16. Bxc4 {[%emt 0:00:17]} Rxc4 {[%emt 0:00:02]} 17. f5 {[%emt 0:00:16]} dxe5 {[%emt 0:00:18]} 18. Nf3 {[%emt 0:00:24]} Bd6 {[%emt 0:00:19]} 19. f6 {[%emt 0:00:07]} Qxf6 {[%emt 0:00:12]} 20. Nd2 {[%emt 0:00:06]} Rf4 {[%emt 0:00:10]} 21. Nce4 {[%emt 0:00:02]} Rxf1+ {[%emt 0:00:06]} 22. Rxf1 {[%emt 0:00:02]} Qe7 {[%emt 0:00:02]} 23. Nxd6 {[%emt 0:00:10]} Qxd6 {[%emt 0:00:03]} 24. Ne4 {[%emt 0:00:01]} Qd5 {[%emt 0:00:11]} 25. Qh4 {[%emt 0:00:13]} Bc6 {[%emt 0:00:11]} 0-1